Workbook

Sheet 三女河办事处
A1: 高新区2023年实际种粮农民一次性补贴（第一批）发放公示表
A3: 序 号 | B3: 姓名 | C3: 补贴面积（亩） | D3: 补贴标准（元/亩） | E3: 补贴金额（元） | F3: 备注
A4: 1 | B4: 姜连丰 | C4: 2.50 | D4: 8.99 | E4: 22.48
A5: 2 | B5: 罗小珍 | C5: 27.70 | D5: 8.99 | E5: 249.02
A6: 3 | B6: 徐宝成 | C6: 12.66 | D6: 8.99 | E6: 113.81
A7: 4 | B7: 尹瑞忠 | C7: 3.85 | D7: 8.99 | E7: 34.61
A8: 5 | B8: 王淑丽 | C8: 8.40 | D8: 8.99 | E8: 75.52
A9: 6 | B9: 王长春 | C9: 12.00 | D9: 8.99 | E9: 107.88
A10: 7 | B10: 姜连军 | C10: 2.50 | D10: 8.99 | E10: 22.48
A11: 8 | B11: 薛问合 | C11: 11.11 | D11: 8.99 | E11: 99.88
A12: 9 | B12: 姜阔 | C12: 7.38 | D12: 8.99 | E12: 66.35
A13: 10 | B13: 安子邦 | C13: 18.96 | D13: 8.99 | E13: 170.45
A14: 11 | B14: 薛学明 | C14: 5.80 | D14: 8.99 | E14: 52.14
A15: 12 | B15: 姜连明 | C15: 11.44 | D15: 8.99 | E15: 102.85
A16: 13 | B16: 林占东 | C16: 10.00 | D16: 8.99 | E16: 89.90
A17: 14 | B17: 董国成 | C17: 6.60 | D17: 8.99 | E17: 59.33
A18: 15 | B18: 姜连亚 | C18: 6.10 | D18: 8.99 | E18: 54.84
A19: 16 | B19: 安玉平 | C19: 6.00 | D19: 8.99 | E19: 53.94
A20: 17 | B20: 安志财 | C20: 5.35 | D20: 8.99 | E20: 48.10
A21: 18 | B21: 刘春利 | C21: 5.2 | D21: 8.99 | E21: 46.75
A22: 19 | B22: 李士常 | C22: 3.70 | D22: 8.99 | E22: 33.26
A23: 20 | B23: 徐海 | C23: 13.35 | D23: 8.99 | E23: 120.02
A24: 21 | B24: 徐宝生 | C24: 4.6 | D24: 8.99 | E24: 41.35
A25: 22 | B25: 姜连俊 | C25: 7.75 | D25: 8.99 | E25: 69.67
A26: 23 | B26: 姜永财 | C26: 16.1 | D26: 8.99 | E26: 144.74
A27: 24 | B27: 姜禹 | C27: 12 | D27: 8.99 | E27: 107.88
A28: 25 | B28: 姜永伍 | C28: 13.66 | D28: 8.99 | E28: 122.80
A29: 26 | B29: 尹瑞波 | C29: 9.5 | D29: 8.99 | E29: 85.41
A30: 27 | B30: 姜连勇 | C30: 10.8 | D30: 8.99 | E30: 97.09
A31: 28 | B31: 刘树芳 | C31: 14.8 | D31: 8.99 | E31: 133.05
A32: 29 | B32: 姜永满 | C32: 7.35 | D32: 8.99 | E32: 66.08
A33: 30 | B33: 姜永占 | C33: 9.45 | D33: 8.99 | E33: 84.96
A34: 31 | B34: 尹建新 | C34: 11.6 | D34: 8.99 | E34: 104.28
A35: 32 | B35: 姜连达 | C35: 8.1 | D35: 8.99 | E35: 72.82
A36: 33 | B36: 姜连中 | C36: 4 | D36: 8.99 | E36: 35.96
A37: 34 | B37: 安玉生 | C37: 7.93 | D37: 8.99 | E37: 71.29
A38: 35 | B38: 薛问成 | C38: 35.15 | D38: 8.99 | E38: 316.00
A39: 36 | B39: 薛学志 | C39: 6.41 | D39: 8.99 | E39: 57.63
A40: 37 | B40: 姜福存 | C40: 23.33 | D40: 8.99 | E40: 209.74
A41: 38 | B41: 薛问田 | C41: 22.1 | D41: 8.99 | E41: 198.68
A42: 39 | B42: 姜福元 | C42: 7.35 | D42: 8.99 | E42: 66.08
A43: 40 | B43: 薛问良 | C43: 3 | D43: 8.99 | E43: 26.97
A44: 41 | B44: 薛向海 | C44: 10.73 | D44: 8.99 | E44: 96.46
A45: 42 | B45: 姜满合 | C45: 17 | D45: 8.99 | E45: 152.83
A46: 43 | B46: 高宝春 | C46: 5 | D46: 8.99 | E46: 44.95
A47: 44 | B47: 姜秋杰 | C47: 16.13 | D47: 8.99 | E47: 145.01
A48: 45 | B48: 姜福林 | C48: 1.4 | D48: 8.99 | E48: 12.59
A49: 46 | B49: 薛立强 | C49: 14.3 | D49: 8.99 | E49: 128.56
A50: 47 | B50: 姜连福 | C50: 40.25 | D50: 8.99 | E50: 361.85
A51: 48 | B51: 孙学双 | C51: 4.25 | D51: 8.99 | E51: 38.21
A52: 49 | B52: 姜连康 | C52: 59.14 | D52: 8.99 | E52: 531.67
A53: 50 | B53: 徐强 | C53: 10.5 | D53: 8.99 | E53: 94.40
A54: 51 | B54: 姜连仲 | C54: 6.5 | D54: 8.99 | E54: 58.44
A55: 52 | B55: 高振东 | C55: 7.1 | D55: 8.99 | E55: 63.83
A56: 53 | B56: 姜连建 | C56: 10 | D56: 8.99 | E56: 89.90
A57: 54 | B57: 安福生 | C57: 11 | D57: 8.99 | E57: 98.89
A58: 55 | B58: 安小利 | C58: 16.1 | D58: 8.99 | E58: 144.74
A59: 56 | B59: 林占山 | C59: 8.4 | D59: 8.99 | E59: 75.52
A60: 57 | B60: 林学宏 | C60: 9.2 | D60: 8.99 | E60: 82.71
A61: 58 | B61: 姜振宽 | C61: 3.5 | D61: 8.99 | E61: 31.47
A62: 59 | B62: 刘春波 | C62: 3.5 | D62: 8.99 | E62: 31.47
A63: 60 | B63: 刘春旭 | C63: 3.5 | D63: 8.99 | E63: 31.47
A64: 61 | B64: 安子伍 | C64: 2.55 | D64: 8.99 | E64: 22.92
A65: 62 | B65: 刘树芹 | C65: 4 | D65: 8.99 | E65: 35.96
A66: 63 | B66: 徐欣 | C66: 3 | D66: 8.99 | E66: 26.97
A67: 64 | B67: 高宝华 | C67: 8.18 | D67: 8.99 | E67: 73.54
A68: 65 | B68: 王宝芝 | C68: 10.5 | D68: 8.99 | E68: 94.40
A69: 66 | B69: 施云轩 | C69: 7.9 | D69: 8.99 | E69: 71.02
A70: 67 | B70: 徐中伏 | C70: 9.63 | D70: 8.99 | E70: 86.57
A71: 68 | B71: 靳文泊 | C71: 7.3 | D71: 8.99 | E71: 65.63
A72: 69 | B72: 施小新 | C72: 9.3 | D72: 8.99 | E72: 83.61
A73: 70 | B73: 冯寿建 | C73: 11.6 | D73: 8.99 | E73: 104.28
A74: 71 | B74: 李宝军 | C74: 8.69 | D74: 8.99 | E74: 78.12
A75: 72 | B75: 代淑珍 | C75: 18.3 | D75: 8.99 | E75: 164.52
A76: 73 | B76: 靳文国 | C76: 10.53 | D76: 8.99 | E76: 94.66
A77: 74 | B77: 冯满义 | C77: 4.35 | D77: 8.99 | E77: 39.11
A78: 75 | B78: 冯寿印 | C78: 2.72 | D78: 8.99 | E78: 24.45
A79: 76 | B79: 孙立新 | C79: 1.35 | D79: 8.99 | E79: 12.14
A80: 77 | B80: 郁小亮 | C80: 22 | D80: 8.99 | E80: 197.78
A81: 78 | B81: 李为民 | C81: 0.27 | D81: 8.99 | E81: 2.43
A82: 79 | B82: 姚玉国 | C82: 1.5 | D82: 8.99 | E82: 13.49
A83: 80 | B83: 张丽荣 | C83: 4.8 | D83: 8.99 | E83: 43.15
A84: 81 | B84: 冯海欧 | C84: 1 | D84: 8.99 | E84: 8.99
A85: 82 | B85: 李松 | C85: 219 | D85: 8.99 | E85: 1,968.81
A86: 83 | B86: 冯瑞周 | C86: 11.5 | D86: 8.99 | E86: 103.39
A87: 84 | B87: 马七勋 | C87: 2.98 | D87: 8.99 | E87: 26.79
A88: 85 | B88: 吴秀君 | C88: 7.5 | D88: 8.99 | E88: 67.43
A89: 86 | B89: 张贵春 | C89: 5.7 | D89: 8.99 | E89: 51.24
A90: 87 | B90: 冯秋生 | C90: 60 | D90: 8.99 | E90: 539.40
A91: 88 | B91: 林晓玉 | C91: 248 | D91: 8.99 | E91: 2,229.52
A92: 89 | B92: 李忠民 | C92: 5.5 | D92: 8.99 | E92: 49.45
A93: 90 | B93: 姚建东 | C93: 10 | D93: 8.99 | E93: 89.90
A94: 91 | B94: 罗文兴 | C94: 3.5 | D94: 8.99 | E94: 31.47
A95: 92 | B95: 施克刚 | C95: 7 | D95: 8.99 | E95: 62.93
A96: 93 | B96: 兰金双 | C96: 7.7 | D96: 8.99 | E96: 69.22
A97: 94 | B97: 冯瑞争 | C97: 25 | D97: 8.99 | E97: 224.75
A98: 95 | B98: 王建华 | C98: 7.8 | D98: 8.99 | E98: 70.12
A99: 96 | B99: 施云合 | C99: 6 | D99: 8.99 | E99: 53.94
A100: 97 | B100: 王建忠 | C100: 12 | D100: 8.99 | E100: 107.88
A101: 98 | B101: 冯瑞恒 | C101: 4.88 | D101: 8.99 | E101: 43.87
A102: 99 | B102: 何天敏 | C102: 5 | D102: 8.99 | E102: 44.95
A103: 100 | B103: 徐泽胜 | C103: 10 | D103: 8.99 | E103: 89.90
A104: 101 | B104: 吴换舫 | C104: 11 | D104: 8.99 | E104: 98.89
A105: 102 | B105: 张友利 | C105: 5 | D105: 8.99 | E105: 44.95
A106: 103 | B106: 张振英 | C106: 3.4 | D106: 8.99 | E106: 30.57
A107: 104 | B107: 马连军 | C107: 0.5 | D107: 8.99 | E107: 4.50
A108: 105 | B108: 施志明 | C108: 12 | D108: 8.99 | E108: 107.88
A109: 106 | B109: 马宝顺 | C109: 2.06 | D109: 8.99 | E109: 18.52
A110: 107 | B110: 徐泽江 | C110: 7.6 | D110: 8.99 | E110: 68.32
A111: 108 | B111: 姚玉成 | C111: 9.2 | D111: 8.99 | E111: 82.71
A112: 109 | B112: 罗文学 | C112: 1.5 | D112: 8.99 | E112: 13.49
A113: 110 | B113: 施俊青 | C113: 8.4 | D113: 8.99 | E113: 75.52
A114: 111 | B114: 罗永超 | C114: 14 | D114: 8.99 | E114: 125.86
A115: 112 | B115: 王申 | C115: 1.7 | D115: 8.99 | E115: 15.28
A116: 113 | B116: 孙凤英 | C116: 7.55 | D116: 8.99 | E116: 67.87
A117: 114 | B117: 冯瑞波 | C117: 8.13 | D117: 8.99 | E117: 73.09
A118: 115 | B118: 赵岩 | C118: 136 | D118: 8.99 | E118: 1,222.64
A119: 116 | B119: 马东亮 | C119: 43.2 | D119: 8.99 | E119: 388.37
A120: 117 | B120: 张建 | C120: 7.2 | D120: 8.99 | E120: 64.73
A121: 118 | B121: 姚连开 | C121: 5.7 | D121: 8.99 | E121: 51.24
A122: 119 | B122: 张贵江 | C122: 4 | D122: 8.99 | E122: 35.96
A123: 120 | B123: 徐廷亮 | C123: 6.25 | D123: 8.99 | E123: 56.19
A124: 121 | B124: 施晓丰 | C124: 47 | D124: 8.99 | E124: 422.53
A125: 122 | B125: 张贵清 | C125: 7.39 | D125: 8.99 | E125: 66.44
A126: 123 | B126: 冯会 | C126: 8 | D126: 8.99 | E126: 71.92
A127: 124 | B127: 张志高 | C127: 4 | D127: 8.99 | E127: 35.96
A128: 125 | B128: 韩国强 | C128: 3.7 | D128: 8.99 | E128: 33.26
A129: 126 | B129: 韩国海 | C129: 2.2 | D129: 8.99 | E129: 19.78
A130: 127 | B130: 韩国权 | C130: 20 | D130: 8.99 | E130: 179.80
A131: 128 | B131: 罗文双 | C131: 4.5 | D131: 8.99 | E131: 40.46
A132: 129 | B132: 马长力 | C132: 0.53 | D132: 8.99 | E132: 4.76
A133: 130 | B133: 李海民 | C133: 2 | D133: 8.99 | E133: 17.98
A134: 131 | B134: 徐泽东 | C134: 8.5 | D134: 8.99 | E134: 76.42
A135: 132 | B135: 徐丰 | C135: 28.62 | D135: 8.99 | E135: 257.29
A136: 133 | B136: 张勇 | C136: 46.64 | D136: 8.99 | E136: 419.29
A137: 134 | B137: 施小亮 | C137: 28.61 | D137: 8.99 | E137: 257.20
A138: 135 | B138: 徐志强 | C138: 1.5 | D138: 8.99 | E138: 13.49
A139: 136 | B139: 谷孝双 | C139: 5.2 | D139: 8.99 | E139: 46.75
A140: 137 | B140: 施云艾 | C140: 19.4 | D140: 8.99 | E140: 174.41
A141: 138 | B141: 夏凤林 | C141: 15.6 | D141: 8.99 | E141: 140.24
A142: 139 | B142: 孙立功 | C142: 7.5 | D142: 8.99 | E142: 67.43
A143: 140 | B143: 姚玉元 | C143: 1 | D143: 8.99 | E143: 8.99
A144: 141 | B144: 安计凤 | C144: 11.7 | D144: 8.99 | E144: 105.18
A145: 142 | B145: 冯寿友 | C145: 4 | D145: 8.99 | E145: 35.96
A146: 143 | B146: 刘艳波 | C146: 0.6 | D146: 8.99 | E146: 5.39
A147: 144 | B147: 杨翠芝 | C147: 8 | D147: 8.99 | E147: 71.92
A148: 145 | B148: 姚玉田 | C148: 6.7 | D148: 8.99 | E148: 60.23
A149: 146 | B149: 赵洪双 | C149: 15.57 | D149: 8.99 | E149: 139.97
A150: 147 | B150: 施成 | C150: 1.3 | D150: 8.99 | E150: 11.69
A151: 148 | B151: 许贵久 | C151: 0.22 | D151: 8.99 | E151: 1.98
A152: 149 | B152: 马永忠 | C152: 2.5 | D152: 8.99 | E152: 22.48
A153: 150 | B153: 施云力 | C153: 4.5 | D153: 8.99 | E153: 40.46
A154: 151 | B154: 冯寿更 | C154: 7 | D154: 8.99 | E154: 62.93
A155: 152 | B155: 吴春田 | C155: 4 | D155: 8.99 | E155: 35.96
A156: 153 | B156: 张志强 | C156: 7.2 | D156: 8.99 | E156: 64.73
A157: 154 | B157: 于景红 | C157: 8 | D157: 8.99 | E157: 71.92
A158: 155 | B158: 李秀莲 | C158: 6 | D158: 8.99 | E158: 53.94
A159: 156 | B159: 武得存 | C159: 2.7 | D159: 8.99 | E159: 24.27
A160: 157 | B160: 庄顺宝 | C160: 12.9 | D160: 8.99 | E160: 115.97
A161: 158 | B161: 许有贵 | C161: 30 | D161: 8.99 | E161: 269.70
A162: 159 | B162: 陈瑞良 | C162: 5.8 | D162: 8.99 | E162: 52.14
A163: 160 | B163: 裴振更 | C163: 7.5 | D163: 8.99 | E163: 67.43
A164: 161 | B164: 苗树全 | C164: 2 | D164: 8.99 | E164: 17.98
A165: 162 | B165: 王福元 | C165: 6.3 | D165: 8.99 | E165: 56.64
A166: 163 | B166: 陈桂英 | C166: 7 | D166: 8.99 | E166: 62.93
A167: 164 | B167: 侯素芬 | C167: 6.5 | D167: 8.99 | E167: 58.44
A168: 165 | B168: 陈士明 | C168: 16 | D168: 8.99 | E168: 143.84
A169: 166 | B169: 李扬 | C169: 5 | D169: 8.99 | E169: 44.95
A170: 167 | B170: 陈瑞增 | C170: 6.7 | D170: 8.99 | E170: 60.23
A171: 168 | B171: 裴振弟 | C171: 7.2 | D171: 8.99 | E171: 64.73
A172: 169 | B172: 王科利 | C172: 4.2 | D172: 8.99 | E172: 37.76
A173: 170 | B173: 王福宝 | C173: 5.2 | D173: 8.99 | E173: 46.75
A174: 171 | B174: 王福来 | C174: 17.5 | D174: 8.99 | E174: 157.33
A175: 172 | B175: 于景海 | C175: 23 | D175: 8.99 | E175: 206.77
A176: 173 | B176: 王秀武 | C176: 7.1 | D176: 8.99 | E176: 63.83
A177: 174 | B177: 宣淑芹 | C177: 3.01 | D177: 8.99 | E177: 27.06
A178: 175 | B178: 裴振民 | C178: 8.1 | D178: 8.99 | E178: 72.82
A179: 176 | B179: 刘国旺 | C179: 4.5 | D179: 8.99 | E179: 40.46
A180: 177 | B180: 孙世超 | C180: 3.5 | D180: 8.99 | E180: 31.47
A181: 178 | B181: 徐长华 | C181: 10 | D181: 8.99 | E181: 89.90
A182: 179 | B182: 王贵富 | C182: 3.68 | D182: 8.99 | E182: 33.08
A183: 180 | B183: 申士国 | C183: 6 | D183: 8.99 | E183: 53.94
A184: 181 | B184: 庄永生 | C184: 10 | D184: 8.99 | E184: 89.90
A185: 182 | B185: 黄丽 | C185: 7 | D185: 8.99 | E185: 62.93
A186: 183 | B186: 孙学良 | C186: 7.9 | D186: 8.99 | E186: 71.02
A187: 184 | B187: 于俊海 | C187: 1.8 | D187: 8.99 | E187: 16.18
A188: 185 | B188: 庄雨青 | C188: 8.3 | D188: 8.99 | E188: 74.62
A189: 186 | B189: 吕振利 | C189: 5 | D189: 8.99 | E189: 44.95
A190: 187 | B190: 周会生 | C190: 8.17 | D190: 8.99 | E190: 73.45
A191: 188 | B191: 苗振忠 | C191: 9.3 | D191: 8.99 | E191: 83.61
A192: 189 | B192: 韩忠民 | C192: 5 | D192: 8.99 | E192: 44.95
A193: 190 | B193: 张德良 | C193: 5.3 | D193: 8.99 | E193: 47.65
A194: 191 | B194: 吴秀立 | C194: 3.5 | D194: 8.99 | E194: 31.47
A195: 192 | B195: 庄连付 | C195: 4.46 | D195: 8.99 | E195: 40.10
A196: 193 | B196: 庄洪岩 | C196: 8 | D196: 8.99 | E196: 71.92
A197: 194 | B197: 孙学忠 | C197: 4.4 | D197: 8.99 | E197: 39.56
A198: 195 | B198: 王凤合 | C198: 32 | D198: 8.99 | E198: 287.68
A199: 196 | B199: 吕振东 | C199: 4.3 | D199: 8.99 | E199: 38.66
A200: 197 | B200: 韩忠举 | C200: 5 | D200: 8.99 | E200: 44.95
A201: 198 | B201: 张学 | C201: 3.5 | D201: 8.99 | E201: 31.47
... 1932 more rows

Sheet 庆北办事处
A1: 高新区2023年实际种粮农民一次性补贴（第一批）发放公示表
A3: 序 号 | B3: 姓名 | C3: 补贴面积（亩） | D3: 补贴标准（元/亩） | E3: 补贴金额（元） | F3: 备注
A4: 1 | B4: 秦全洪 | C4: 10.00 | D4: 8.99 | E4: 89.90 | F4: 北口
A5: 2 | B5: 秦于波 | C5: 2.50 | D5: 8.99 | E5: 22.48 | F5: 北口
A6: 3 | B6: 秦宏林 | C6: 4.00 | D6: 8.99 | E6: 35.96 | F6: 北口
A7: 4 | B7: 秦恩海 | C7: 2.00 | D7: 8.99 | E7: =D7*C7 -> 17.98 | F7: 北口
A8: 5 | B8: 王荣全 | C8: 7.50 | D8: 8.99 | E8: 67.43 | F8: 北口
A9: 6 | B9: 王来存 | C9: 8.50 | D9: 8.99 | E9: 76.42 | F9: 宋各庄
A10: 7 | B10: 王秀君 | C10: 5.00 | D10: 8.99 | E10: 44.95 | F10: 宋各庄
A11: 8 | B11: 宋福利 | C11: 5.00 | D11: 8.99 | E11: 44.95 | F11: 宋各庄
A12: 9 | B12: 宋福存 | C12: 5.00 | D12: 8.99 | E12: 44.95 | F12: 宋各庄
A13: 10 | B13: 李立民 | C13: 6.48 | D13: 8.99 | E13: 58.26 | F13: 宋各庄
A14: 11 | B14: 李硕 | C14: 1.62 | D14: 8.99 | E14: 14.56 | F14: 宋各庄
A15: 12 | B15: 王宝玉 | C15: 7.26 | D15: 8.99 | E15: 65.27 | F15: 宋各庄
A16: 13 | B16: 宋福堂 | C16: 6.48 | D16: 8.99 | E16: 58.26 | F16: 宋各庄
A17: 14 | B17: 宋云侠 | C17: 6.48 | D17: 8.99 | E17: 58.26 | F17: 宋各庄
A18: 15 | B18: 王宝柱 | C18: 6.88 | D18: 8.99 | E18: 61.85 | F18: 宋各庄
A19: 16 | B19: 宋学芳 | C19: 6.48 | D19: 8.99 | E19: 58.26 | F19: 宋各庄
A20: 17 | B20: 宋学东 | C20: 4.86 | D20: 8.99 | E20: 43.69 | F20: 宋各庄
A21: 18 | B21: 王宝田 | C21: 10.13 | D21: 8.99 | E21: 91.07 | F21: 宋各庄
A22: 19 | B22: 宋福臣 | C22: 6.48 | D22: 8.99 | E22: 58.26 | F22: 宋各庄
A23: 20 | B23: 张小东 | C23: 5.00 | D23: 8.99 | E23: 44.95 | F23: 宋各庄
A24: 21 | B24: 王素英 | C24: 3.60 | D24: 8.99 | E24: 32.36 | F24: 宋各庄
A25: 22 | B25: 刘金柱 | C25: 8.10 | D25: 8.99 | E25: 72.82 | F25: 宋各庄
A26: 23 | B26: 肖平俊 | C26: 3.80 | D26: 8.99 | E26: 34.16 | F26: 宋各庄
A27: 24 | B27: 李新华 | C27: 4.86 | D27: 8.99 | E27: 43.69 | F27: 宋各庄
A28: 25 | B28: 肖辉俊 | C28: 5.40 | D28: 8.99 | E28: 48.55 | F28: 宋各庄
A29: 26 | B29: 肖成俊 | C29: 8.20 | D29: 8.99 | E29: 73.72 | F29: 宋各庄
A30: 27 | B30: 肖国清 | C30: 4.86 | D30: 8.99 | E30: 43.69 | F30: 宋各庄
A31: 28 | B31: 肖红贤 | C31: 1.62 | D31: 8.99 | E31: 14.56 | F31: 宋各庄
A32: 29 | B32: 刘振国 | C32: 7.26 | D32: 8.99 | E32: 65.27 | F32: 宋各庄
A33: 30 | B33: 李济民 | C33: 6.48 | D33: 8.99 | E33: 58.26 | F33: 宋各庄
A34: 31 | B34: 宋福才 | C34: 8.10 | D34: 8.99 | E34: 72.82 | F34: 宋各庄
A35: 32 | B35: 杨士英 | C35: 3.24 | D35: 8.99 | E35: 29.13 | F35: 宋各庄
A36: 33 | B36: 宋福全 | C36: 6.48 | D36: 8.99 | E36: 58.26 | F36: 宋各庄
A37: 34 | B37: 宋庆国 | C37: 4.86 | D37: 8.99 | E37: 43.69 | F37: 宋各庄
A38: 35 | B38: 张翠平 | C38: 4.50 | D38: 8.99 | E38: 40.46 | F38: 宋各庄
A39: 36 | B39: 李亚利 | C39: 5.34 | D39: 8.99 | E39: 48.01 | F39: 宋各庄
A40: 37 | B40: 李秀峰 | C40: 8.91 | D40: 8.99 | E40: 80.10 | F40: 宋各庄
A41: 38 | B41: 芮素芝 | C41: 2.70 | D41: 8.99 | E41: 24.27 | F41: 宋各庄
A42: 39 | B42: 王利国 | C42: 7.62 | D42: 8.99 | E42: 68.50 | F42: 宋各庄
A43: 40 | B43: 肖会斌 | C43: 6.20 | D43: 8.99 | E43: 55.74 | F43: 宋各庄
A44: 41 | B44: 宋志军 | C44: 3.62 | D44: 8.99 | E44: 32.54 | F44: 宋各庄
A45: 42 | B45: 肖凤文 | C45: 10.00 | D45: 8.99 | E45: 89.90 | F45: 宋各庄
A46: 43 | B46: 肖连贵 | C46: 11.00 | D46: 8.99 | E46: 98.89 | F46: 宋各庄
A47: 44 | B47: 肖永利 | C47: 5.50 | D47: 8.99 | E47: 49.45 | F47: 宋各庄
A48: 45 | B48: 肖振才 | C48: 7.30 | D48: 8.99 | E48: 65.63 | F48: 宋各庄
A49: 46 | B49: 裴树立 | C49: 9.80 | D49: 8.99 | E49: 88.10 | F49: 宋各庄
A50: 47 | B50: 刘彬 | C50: 7.30 | D50: 8.99 | E50: 65.63 | F50: 宋各庄
A51: 48 | B51: 刘海波 | C51: 7.22 | D51: 8.99 | E51: 64.91 | F51: 宋各庄
A52: 49 | B52: 温学红 | C52: 1.81 | D52: 8.99 | E52: 16.27 | F52: 宋各庄
A53: 50 | B53: 廖计书 | C53: 3.61 | D53: 8.99 | E53: 32.45 | F53: 宋各庄
A54: 51 | B54: 宋银柱 | C54: 7.22 | D54: 8.99 | E54: 64.91 | F54: 宋各庄
A55: 52 | B55: 肖振田 | C55: 7.30 | D55: 8.99 | E55: 65.63 | F55: 宋各庄
A56: 53 | B56: 肖智永 | C56: 5.50 | D56: 8.99 | E56: 49.45 | F56: 宋各庄
A57: 54 | B57: 肖振权 | C57: 3.61 | D57: 8.99 | E57: 32.45 | F57: 宋各庄
A58: 55 | B58: 舒占明 | C58: 5.50 | D58: 8.99 | E58: 49.45 | F58: 宋各庄
A59: 56 | B59: 舒占宇 | C59: 5.50 | D59: 8.99 | E59: 49.45 | F59: 宋各庄
A60: 57 | B60: 肖大齐 | C60: 7.30 | D60: 8.99 | E60: 65.63 | F60: 宋各庄
A61: 58 | B61: 肖大川 | C61: 1.81 | D61: 8.99 | E61: 16.27 | F61: 宋各庄
A62: 59 | B62: 苏显杰 | C62: 7.30 | D62: 8.99 | E62: 65.63 | F62: 宋各庄
A63: 60 | B63: 肖凤霞 | C63: 7.30 | D63: 8.99 | E63: 65.63 | F63: 宋各庄
A64: 61 | B64: 刘海宽 | C64: 3.61 | D64: 8.99 | E64: 32.45 | F64: 宋各庄
A65: 62 | B65: 宋海艳 | C65: 3.61 | D65: 8.99 | E65: 32.45 | F65: 宋各庄
A66: 63 | B66: 肖振林 | C66: 7.30 | D66: 8.99 | E66: 65.63 | F66: 宋各庄
A67: 64 | B67: 刘彩玲 | C67: 7.30 | D67: 8.99 | E67: 65.63 | F67: 宋各庄
A68: 65 | B68: 房秀珍 | C68: 2.14 | D68: 8.99 | E68: 19.24 | F68: 宋各庄
A69: 66 | B69: 董志梅 | C69: 5.60 | D69: 8.99 | E69: 50.34 | F69: 宋各庄
A70: 67 | B70: 刘国胜 | C70: 9.70 | D70: 8.99 | E70: 87.20 | F70: 宋各庄
A71: 68 | B71: 刘国忠 | C71: 7.50 | D71: 8.99 | E71: 67.43 | F71: 宋各庄
A72: 69 | B72: 刘季恩 | C72: 6.00 | D72: 8.99 | E72: =D72*C72 -> 53.94 | F72: 宋各庄
A73: 70 | B73: 梁秀荣 | C73: 6.00 | D73: 8.99 | E73: 53.94 | F73: 宋各庄
A74: 71 | B74: 宋福为 | C74: 5.50 | D74: 8.99 | E74: 49.45 | F74: 宋各庄
A75: 72 | B75: 肖振富 | C75: 7.50 | D75: 8.99 | E75: 67.43 | F75: 宋各庄
A76: 73 | B76: 肖振刚 | C76: 6.60 | D76: 8.99 | E76: 59.33 | F76: 宋各庄
A77: 74 | B77: 肖振国 | C77: 5.00 | D77: 8.99 | E77: 44.95 | F77: 宋各庄
A78: 75 | B78: 肖振利 | C78: 8.40 | D78: 8.99 | E78: 75.52 | F78: 宋各庄
A79: 76 | B79: 宋福柱 | C79: 8.60 | D79: 8.99 | E79: 77.31 | F79: 宋各庄
A80: 77 | B80: 宋福义 | C80: 8.60 | D80: 8.99 | E80: 77.31 | F80: 宋各庄
A81: 78 | B81: 李秀芹 | C81: 8.40 | D81: 8.99 | E81: 75.52 | F81: 宋各庄
A82: 79 | B82: 肖翠英 | C82: 3.50 | D82: 8.99 | E82: 31.47 | F82: 宋各庄
A83: 80 | B83: 孙卫东 | C83: 5.80 | D83: 8.99 | E83: 52.14 | F83: 宋各庄
A84: 81 | B84: 肖振成 | C84: 3.50 | D84: 8.99 | E84: 31.47 | F84: 宋各庄
A85: 82 | B85: 王宝仲 | C85: 8.50 | D85: 8.99 | E85: 76.42 | F85: 宋各庄
A86: 83 | B86: 肖绘锦 | C86: 3.80 | D86: 8.99 | E86: 34.16 | F86: 宋各庄
A87: 84 | B87: 肖振宇 | C87: 3.00 | D87: 8.99 | E87: 26.97 | F87: 宋各庄
A88: 85 | B88: 赵满囤 | C88: 3.40 | D88: 8.99 | E88: 30.57 | F88: 宋各庄
A89: 86 | B89: 刘凤兰 | C89: 7.70 | D89: 8.99 | E89: 69.22 | F89: 宋各庄
A90: 87 | B90: 柳和平 | C90: 5.40 | D90: 8.99 | E90: 48.55 | F90: 宋各庄
A91: 88 | B91: 宋志刚 | C91: 6.75 | D91: 8.99 | E91: 60.68 | F91: 宋各庄
A92: 89 | B92: 宋志强 | C92: 6.75 | D92: 8.99 | E92: 60.68 | F92: 宋各庄
A93: 90 | B93: 刘国利 | C93: 4.50 | D93: 8.99 | E93: 40.46 | F93: 宋各庄
A94: 91 | B94: 谷孝焕 | C94: 6.75 | D94: 8.99 | E94: 60.68 | F94: 宋各庄
A95: 92 | B95: 翟桂珍 | C95: 6.10 | D95: 8.99 | E95: 54.84 | F95: 宋各庄
A96: 93 | B96: 刘国友 | C96: 4.70 | D96: 8.99 | E96: 42.25 | F96: 宋各庄
A97: 94 | B97: 刘强 | C97: 2.70 | D97: 8.99 | E97: 24.27 | F97: 宋各庄
A98: 95 | B98: 赵国栋 | C98: 4.05 | D98: 8.99 | E98: 36.41 | F98: 宋各庄
A99: 96 | B99: 赵宝良 | C99: 4.05 | D99: 8.99 | E99: 36.41 | F99: 宋各庄
A100: 97 | B100: 陈秀侠 | C100: 4.05 | D100: 8.99 | E100: 36.41 | F100: 宋各庄
A101: 98 | B101: 张存来 | C101: 6.75 | D101: 8.99 | E101: 60.68 | F101: 宋各庄
A102: 99 | B102: 宋宝东 | C102: 8.10 | D102: 8.99 | E102: 72.82 | F102: 宋各庄
A103: 100 | B103: 宋守柱 | C103: 6.80 | D103: 8.99 | E103: 61.13 | F103: 宋各庄
A104: 101 | B104: 鲁明云 | C104: 6.75 | D104: 8.99 | E104: 60.68 | F104: 宋各庄
A105: 102 | B105: 赵宗敏 | C105: 5.50 | D105: 8.99 | E105: 49.45 | F105: 宋各庄
A106: 103 | B106: 宋志恒 | C106: 6.08 | D106: 8.99 | E106: 54.66 | F106: 宋各庄
A107: 104 | B107: 宋志英 | C107: 4.73 | D107: 8.99 | E107: 42.52 | F107: 宋各庄
A108: 105 | B108: 宋宝林 | C108: 6.08 | D108: 8.99 | E108: 54.66 | F108: 宋各庄
A109: 106 | B109: 宋宝全 | C109: 4.05 | D109: 8.99 | E109: 36.41 | F109: 宋各庄
A110: 107 | B110: 王小力 | C110: 3.40 | D110: 8.99 | E110: 30.57 | F110: 宋各庄
A111: 108 | B111: 朱长军 | C111: 5.40 | D111: 8.99 | E111: 48.55 | F111: 宋各庄
A112: 109 | B112: 郭素贤 | C112: 2.70 | D112: 8.99 | E112: 24.27 | F112: 宋各庄
A113: 110 | B113: 朱长江 | C113: 4.50 | D113: 8.99 | E113: 40.46 | F113: 宋各庄
A114: 111 | B114: 宋永和 | C114: 3.00 | D114: 8.99 | E114: 26.97 | F114: 宋各庄
A115: 112 | B115: 肖振民 | C115: 4.03 | D115: 8.99 | E115: 36.23 | F115: 宋各庄
A116: 113 | B116: 宋永强 | C116: 4.25 | D116: 8.99 | E116: 38.21 | F116: 宋各庄
A117: 114 | B117: 宋永刚 | C117: 4.25 | D117: 8.99 | E117: 38.21 | F117: 宋各庄
A118: 115 | B118: 赵恩明 | C118: 5.50 | D118: 8.99 | E118: 49.45 | F118: 宋各庄
A119: 116 | B119: 宋桂芳 | C119: 7.10 | D119: 8.99 | E119: 63.83 | F119: 宋各庄
A120: 117 | B120: 刘国志 | C120: 7.10 | D120: 8.99 | E120: 63.83 | F120: 宋各庄
A121: 118 | B121: 武振香 | C121: 2.84 | D121: 8.99 | E121: 25.53 | F121: 宋各庄
A122: 119 | B122: 庞宝民 | C122: 2.84 | D122: 8.99 | E122: 25.53 | F122: 宋各庄
A123: 120 | B123: 赵恩余 | C123: 6.60 | D123: 8.99 | E123: 59.33 | F123: 宋各庄
A124: 121 | B124: 肖国生 | C124: 3.00 | D124: 8.99 | E124: 26.97 | F124: 宋各庄
A125: 122 | B125: 宋双林 | C125: 6.39 | D125: 8.99 | E125: 57.45 | F125: 宋各庄
A126: 123 | B126: 刘彩华 | C126: 9.23 | D126: 8.99 | E126: 82.98 | F126: 宋各庄
A127: 124 | B127: 宋丽梅 | C127: 6.15 | D127: 8.99 | E127: 55.29 | F127: 宋各庄
A128: 125 | B128: 宋坦林 | C128: 5.68 | D128: 8.99 | E128: 51.06 | F128: 宋各庄
A129: 126 | B129: 赵恩江 | C129: 6.63 | D129: 8.99 | E129: 59.60 | F129: 宋各庄
A130: 127 | B130: 宋永友 | C130: 6.30 | D130: 8.99 | E130: 56.64 | F130: 宋各庄
A131: 128 | B131: 刘彩林 | C131: 6.50 | D131: 8.99 | E131: 58.44 | F131: 宋各庄
A132: 129 | B132: 施素英 | C132: 7.10 | D132: 8.99 | E132: 63.83 | F132: 宋各庄
A133: 130 | B133: 宋永新 | C133: 4.97 | D133: 8.99 | E133: 44.68 | F133: 宋各庄
A134: 131 | B134: 庞宝顺 | C134: 4.50 | D134: 8.99 | E134: 40.46 | F134: 宋各庄
A135: 132 | B135: 肖国才 | C135: 4.26 | D135: 8.99 | E135: 38.30 | F135: 宋各庄
A136: 133 | B136: 刘瑞清 | C136: 5.50 | D136: 8.99 | E136: =D136*C136 -> 49.45 | F136: 宋各庄
A137: 134 | B137: 赵宝军 | C137: 4.36 | D137: 8.99 | E137: 39.20 | F137: 宋各庄
A138: 135 | B138: 宋杰 | C138: 3.21 | D138: 8.99 | E138: 28.86 | F138: 宋各庄
A139: 136 | B139: 赵宝森 | C139: 6.84 | D139: 8.99 | E139: 61.49 | F139: 宋各庄
A140: 137 | B140: 宋铁柱 | C140: 3.45 | D140: 8.99 | E140: 31.02 | F140: 宋各庄
A141: 138 | B141: 宋长波 | C141: 5.70 | D141: 8.99 | E141: 51.24 | F141: 宋各庄
A142: 139 | B142: 张玉环 | C142: 6.10 | D142: 8.99 | E142: 54.84 | F142: 宋各庄
A143: 140 | B143: 宋守先 | C143: 5.40 | D143: 8.99 | E143: 48.55 | F143: 宋各庄
A144: 141 | B144: 宋永柱 | C144: 5.00 | D144: 8.99 | E144: 44.95 | F144: 宋各庄
A145: 142 | B145: 宋永存 | C145: 5.50 | D145: 8.99 | E145: 49.45 | F145: 宋各庄
A146: 143 | B146: 赵素丽 | C146: 3.21 | D146: 8.99 | E146: 28.86 | F146: 宋各庄
A147: 144 | B147: 宋宝会 | C147: 4.30 | D147: 8.99 | E147: 38.66 | F147: 宋各庄
A148: 145 | B148: 宋永军 | C148: 4.50 | D148: 8.99 | E148: 40.46 | F148: 宋各庄
A149: 146 | B149: 宋建明 | C149: 7.80 | D149: 8.99 | E149: 70.12 | F149: 宋各庄
A150: 147 | B150: 宋友来 | C150: 4.28 | D150: 8.99 | E150: 38.48 | F150: 宋各庄
A151: 148 | B151: 宋永刚 | C151: 4.28 | D151: 8.99 | E151: 38.48 | F151: 宋各庄
A152: 149 | B152: 宋永华 | C152: 5.35 | D152: 8.99 | E152: 48.10 | F152: 宋各庄
A153: 150 | B153: 董旭忠 | C153: 3.21 | D153: 8.99 | E153: 28.86 | F153: 宋各庄
A154: 151 | B154: 董立成 | C154: 3.36 | D154: 8.99 | E154: 30.21 | F154: 宋各庄
A155: 152 | B155: 宋永清 | C155: 4.30 | D155: 8.99 | E155: 38.66 | F155: 宋各庄
A156: 153 | B156: 宋永生 | C156: 3.41 | D156: 8.99 | E156: 30.66 | F156: 宋各庄
A157: 154 | B157: 刘光忠 | C157: 7.10 | D157: 8.99 | E157: 63.83 | F157: 宋各庄
A158: 155 | B158: 宋守敏 | C158: 3.21 | D158: 8.99 | E158: 28.86 | F158: 宋各庄
A159: 156 | B159: 宋秋良 | C159: 3.21 | D159: 8.99 | E159: 28.86 | F159: 宋各庄
A160: 157 | B160: 宋利明 | C160: 7.00 | D160: 8.99 | E160: 62.93 | F160: 宋各庄
A161: 158 | B161: 赵宝阁 | C161: 3.21 | D161: 8.99 | E161: 28.86 | F161: 宋各庄
A162: 159 | B162: 赵国权 | C162: 1.10 | D162: 8.99 | E162: 9.89 | F162: 宋各庄
A163: 160 | B163: 李春红 | C163: 1.50 | D163: 8.99 | E163: 13.49 | F163: 宋各庄
A164: 161 | B164: 李才 | C164: 4.75 | D164: 8.99 | E164: 42.70 | F164: 宋各庄
A165: 162 | B165: 李秀芝 | C165: 2.14 | D165: 8.99 | E165: 19.24 | F165: 宋各庄
A166: 163 | B166: 宋学丰 | C166: 3.21 | D166: 8.99 | E166: 28.86 | F166: 宋各庄
A167: 164 | B167: 宋学良 | C167: 3.21 | D167: 8.99 | E167: 28.86 | F167: 宋各庄
A168: 165 | B168: 李友 | C168: 4.55 | D168: 8.99 | E168: 40.90 | F168: 宋各庄
A169: 166 | B169: 李贺 | C169: 2.64 | D169: 8.99 | E169: 23.73 | F169: 宋各庄
A170: 167 | B170: 李志军 | C170: 5.00 | D170: 8.99 | E170: 44.95 | F170: 宋各庄
A171: 168 | B171: 宋哲良 | C171: 4.70 | D171: 8.99 | E171: 42.25 | F171: 宋各庄
A172: 169 | B172: 宋永来 | C172: 4.50 | D172: 8.99 | E172: 40.46 | F172: 宋各庄
A173: 170 | B173: 宋哲仁 | C173: 3.00 | D173: 8.99 | E173: 26.97 | F173: 宋各庄
A174: 171 | B174: 宋金芝 | C174: 3.00 | D174: 8.99 | E174: 26.97 | F174: 宋各庄
A175: 172 | B175: 宋哲民 | C175: 3.00 | D175: 8.99 | E175: 26.97 | F175: 宋各庄
A176: 173 | B176: 宋哲贤 | C176: 4.00 | D176: 8.99 | E176: 35.96 | F176: 宋各庄
A177: 174 | B177: 宋守刚 | C177: 4.00 | D177: 8.99 | E177: 35.96 | F177: 宋各庄
A178: 175 | B178: 张红 | C178: 4.00 | D178: 8.99 | E178: 35.96 | F178: 宋各庄
A179: 176 | B179: 党艳清 | C179: 3.00 | D179: 8.99 | E179: 26.97 | F179: 宋各庄
A180: 177 | B180: 宋长安 | C180: 3.00 | D180: 8.99 | E180: 26.97 | F180: 宋各庄
A181: 178 | B181: 邵玉仁 | C181: 5.60 | D181: 8.99 | E181: 50.34 | F181: 宋各庄
A182: 179 | B182: 赵宝国 | C182: 6.00 | D182: 8.99 | E182: 53.94 | F182: 宋各庄
A183: 180 | B183: 吕建英 | C183: 3.30 | D183: 8.99 | E183: 29.67 | F183: 宋各庄
A184: 181 | B184: 董旭东 | C184: 3.30 | D184: 8.99 | E184: 29.67 | F184: 宋各庄
A185: 182 | B185: 宋宝存 | C185: 5.00 | D185: 8.99 | E185: 44.95 | F185: 宋各庄
A186: 183 | B186: 宋永田 | C186: 5.33 | D186: 8.99 | E186: 47.92 | F186: 宋各庄
A187: 184 | B187: 宋永利 | C187: 4.30 | D187: 8.99 | E187: 38.66 | F187: 宋各庄
A188: 185 | B188: 宋永丰 | C188: 3.90 | D188: 8.99 | E188: 35.06 | F188: 宋各庄
A189: 186 | B189: 王玉芝 | C189: 3.30 | D189: 8.99 | E189: 29.67 | F189: 宋各庄
A190: 187 | B190: 宋长友 | C190: 5.00 | D190: 8.99 | E190: 44.95 | F190: 宋各庄
A191: 188 | B191: 宋秀春 | C191: 4.00 | D191: 8.99 | E191: 35.96 | F191: 宋各庄
A192: 189 | B192: 宋永成 | C192: 5.30 | D192: 8.99 | E192: 47.65 | F192: 宋各庄
A193: 190 | B193: 宋宝强 | C193: 3.30 | D193: 8.99 | E193: 29.67 | F193: 宋各庄
A194: 191 | B194: 宋宝忠 | C194: 3.30 | D194: 8.99 | E194: 29.67 | F194: 宋各庄
A195: 192 | B195: 宋桂荣 | C195: 1.00 | D195: 8.99 | E195: 8.99 | F195: 宋各庄
A196: 193 | B196: 张焕茹 | C196: 2.70 | D196: 8.99 | E196: 24.27 | F196: 宋各庄
A197: 194 | B197: 赵宏波 | C197: 1.10 | D197: 8.99 | E197: 9.89 | F197: 宋各庄
A198: 195 | B198: 韩建民 | C198: 5.50 | D198: 8.99 | E198: 49.45 | F198: 宋各庄
A199: 196 | B199: 肖森林 | C199: 5.50 | D199: 8.99 | E199: 49.45 | F199: 宋各庄
A200: 197 | B200: 肖国林 | C200: 5.50 | D200: 8.99 | E200: =D200*C200 -> 49.45 | F200: 宋各庄
A201: 198 | B201: 宋永林 | C201: 3.70 | D201: 8.99 | E201: 33.26 | F201: 宋各庄
... 408 more rows

Sheet 街道办事处
A1: 高新区2023年实际种粮农民一次性补贴（第一批）发放公示表
A3: 序 号 | B3: 姓名 | C3: 补贴面积（亩） | D3: 补贴标准（元/亩） | E3: 补贴金额（元） | F3: 备注
A5: 1 | B5: 赵丽君 | C5: 4.06 | D5: 8.99 | E5: 36.50
A6: 2 | B6: 朱学志 | C6: 299.04 | D6: 8.99 | E6: 2,688.37
A7: 3 | B7: 刘瑞明 | C7: 5.22 | D7: 8.99 | E7: 46.93
A8: 4 | B8: 张秋生 | C8: 4.20 | D8: 8.99 | E8: 37.76
A9: 5 | B9: 范志华 | C9: 2.90 | D9: 8.99 | E9: 26.07
A10: 6 | B10: 常振海 | C10: 3.1 | D10: 8.99 | E10: 27.87
A11: 7 | B11: 常振清 | C11: 1.4 | D11: 8.99 | E11: 12.59
A12: 8 | B12: 张佐恩 | C12: 2.05 | D12: 8.99 | E12: 18.43
A13: 9 | B13: 张玉梅 | C13: 3.10 | D13: 8.99 | E13: 27.87
A14: 10 | B14: 常连凯 | C14: 3.09 | D14: 8.99 | E14: 27.78
A15: 合计 | C15: =SUM(C5:C14) -> 328.16 | D15: 8.99 | E15: =SUM(E5:E14) -> 2,950.17
A16: 街道办事处监督举报电话：5776961

Sheet 老庄子镇政府
A1: 高新区2023年实际种粮农民一次性补贴（第一批）发放公示表
A3: 序 号 | B3: 姓名 | C3: 补贴面积（亩） | D3: 补贴标准（元/亩） | E3: 补贴金额（元） | F3: 备注
A4: 1 | B4: 李秀芸 | C4: 2.50 | D4: 8.99 | E4: 22.48 | F4: 老庄子
A5: 2 | B5: 李东立 | C5: 8.00 | D5: 8.99 | E5: 71.92 | F5: 老庄子
A6: 3 | B6: 王子勇 | C6: 12.00 | D6: 8.99 | E6: 107.88 | F6: 老庄子
A7: 4 | B7: 刘春龙 | C7: 6.00 | D7: 8.99 | E7: 53.94 | F7: 老庄子
A8: 5 | B8: 张武 | C8: 2.50 | D8: 8.99 | E8: 22.48 | F8: 老庄子
A9: 6 | B9: 刘景利 | C9: 7.60 | D9: 8.99 | E9: 68.32 | F9: 老庄子
A10: 7 | B10: 李海田 | C10: 7.00 | D10: 8.99 | E10: 62.93 | F10: 老庄子
A11: 8 | B11: 杨宝惠 | C11: 11.00 | D11: 8.99 | E11: 98.89 | F11: 老庄子
A12: 9 | B12: 李春武 | C12: 7.50 | D12: 8.99 | E12: 67.43 | F12: 老庄子
A13: 10 | B13: 刘得余 | C13: 8.50 | D13: 8.99 | E13: 76.42 | F13: 老庄子
A14: 11 | B14: 李国芬 | C14: 4.40 | D14: 8.99 | E14: 39.56 | F14: 老庄子
A15: 12 | B15: 王建新 | C15: 14.50 | D15: 8.99 | E15: 130.36 | F15: 老庄子
A16: 13 | B16: 张玉强 | C16: 2.50 | D16: 8.99 | E16: 22.48 | F16: 老庄子
A17: 14 | B17: 艾立新 | C17: 6.60 | D17: 8.99 | E17: 59.33 | F17: 老庄子
A18: 15 | B18: 艾兴良 | C18: 5.50 | D18: 8.99 | E18: 49.45 | F18: 老庄子
A19: 16 | B19: 李春明 | C19: 13.32 | D19: 8.99 | E19: 119.75 | F19: 老庄子
A20: 17 | B20: 艾振东 | C20: 3.00 | D20: 8.99 | E20: 26.97 | F20: 老庄子
A21: 18 | B21: 郝振玲 | C21: 12.00 | D21: 8.99 | E21: 107.88 | F21: 老庄子
A22: 19 | B22: 李久占 | C22: 4.00 | D22: 8.99 | E22: 35.96 | F22: 老庄子
A23: 20 | B23: 李建国 | C23: 6.00 | D23: 8.99 | E23: 53.94 | F23: 老庄子
A24: 21 | B24: 韩秀霞 | C24: 9.50 | D24: 8.99 | E24: 85.41 | F24: 老庄子
A25: 22 | B25: 李兴生 | C25: 6.50 | D25: 8.99 | E25: 58.44 | F25: 老庄子
A26: 23 | B26: 陈大勇 | C26: 9.50 | D26: 8.99 | E26: 85.41 | F26: 老庄子
A27: 24 | B27: 李春华 | C27: 3.75 | D27: 8.99 | E27: 33.71 | F27: 老庄子
A28: 25 | B28: 李春来 | C28: 5.00 | D28: 8.99 | E28: 44.95 | F28: 老庄子
A29: 26 | B29: 李建峰 | C29: 9.00 | D29: 8.99 | E29: 80.91 | F29: 老庄子
A30: 27 | B30: 李忠田 | C30: 12.00 | D30: 8.99 | E30: 107.88 | F30: 老庄子
A31: 28 | B31: 李建云 | C31: 7.50 | D31: 8.99 | E31: 67.43 | F31: 老庄子
A32: 29 | B32: 李春峰 | C32: 6.90 | D32: 8.99 | E32: 62.03 | F32: 老庄子
A33: 30 | B33: 艾兴宝 | C33: 5.50 | D33: 8.99 | E33: 49.45 | F33: 老庄子
A34: 31 | B34: 刘得友 | C34: 14.00 | D34: 8.99 | E34: 125.86 | F34: 老庄子
A35: 32 | B35: 刘得忠 | C35: 9.50 | D35: 8.99 | E35: 85.41 | F35: 老庄子
A36: 33 | B36: 李洁 | C36: 2.40 | D36: 8.99 | E36: 21.58 | F36: 老庄子
A37: 34 | B37: 焦秀荣 | C37: 4.10 | D37: 8.99 | E37: 36.86 | F37: 老庄子
A38: 35 | B38: 王子贵 | C38: 8.00 | D38: 8.99 | E38: 71.92 | F38: 老庄子
A39: 36 | B39: 张秀芬 | C39: 14.00 | D39: 8.99 | E39: 125.86 | F39: 老庄子
A40: 37 | B40: 刘景林 | C40: 6.00 | D40: 8.99 | E40: 53.94 | F40: 老庄子
A41: 38 | B41: 刘宗本 | C41: 4.50 | D41: 8.99 | E41: 40.46 | F41: 老庄子
A42: 39 | B42: 佟宝荣 | C42: 10.30 | D42: 8.99 | E42: 92.60 | F42: 老庄子
A43: 40 | B43: 安秀芬 | C43: 12.00 | D43: 8.99 | E43: 107.88 | F43: 老庄子
A44: 41 | B44: 艾兴田 | C44: 12.10 | D44: 8.99 | E44: 108.78 | F44: 老庄子
A45: 42 | B45: 张兴茂 | C45: 2.10 | D45: 8.99 | E45: 18.88 | F45: 老庄子
A46: 43 | B46: 赵金良 | C46: 4.70 | D46: 8.99 | E46: 42.25 | F46: 老庄子
A47: 44 | B47: 王金龙 | C47: 10.00 | D47: 8.99 | E47: 89.90 | F47: 老庄子
A48: 45 | B48: 张树军 | C48: 5.00 | D48: 8.99 | E48: 44.95 | F48: 老庄子
A49: 46 | B49: 张兰茂 | C49: 7.50 | D49: 8.99 | E49: 67.43 | F49: 老庄子
A50: 47 | B50: 张树存 | C50: 15.00 | D50: 8.99 | E50: 134.85 | F50: 老庄子
A51: 48 | B51: 赵金勇 | C51: 1.00 | D51: 8.99 | E51: 8.99 | F51: 老庄子
A52: 49 | B52: 张树林 | C52: 4.50 | D52: 8.99 | E52: 40.46 | F52: 老庄子
A53: 50 | B53: 陈金合 | C53: 2.00 | D53: 8.99 | E53: 17.98 | F53: 老庄子
A54: 51 | B54: 何春付 | C54: 1.60 | D54: 8.99 | E54: 14.38 | F54: 老庄子
A55: 52 | B55: 陈少华 | C55: 30.00 | D55: 8.99 | E55: 269.70 | F55: 老庄子
A56: 53 | B56: 赵振亚 | C56: 9.00 | D56: 8.99 | E56: 80.91 | F56: 老庄子
A57: 54 | B57: 艾兴昌 | C57: 6.00 | D57: 8.99 | E57: 53.94 | F57: 老庄子
A58: 55 | B58: 马国付 | C58: 7.30 | D58: 8.99 | E58: 65.63 | F58: 老庄子
A59: 56 | B59: 冯秀艳 | C59: 2.20 | D59: 8.99 | E59: 19.78 | F59: 老庄子
A60: 57 | B60: 袁立英 | C60: 5.20 | D60: 8.99 | E60: 46.75 | F60: 老庄子
A61: 58 | B61: 尚洪静 | C61: 2.98 | D61: 8.99 | E61: 26.79 | F61: 老庄子
A62: 59 | B62: 王金川 | C62: 26.00 | D62: 8.99 | E62: 233.74 | F62: 老庄子
A63: 60 | B63: 杨连生 | C63: 4.20 | D63: 8.99 | E63: 37.76 | F63: 老庄子
A64: 61 | B64: 王有山 | C64: 4.20 | D64: 8.99 | E64: 37.76 | F64: 老庄子
A65: 62 | B65: 董阁芹 | C65: 6.60 | D65: 8.99 | E65: 59.33 | F65: 老庄子
A66: 63 | B66: 庄子明 | C66: 9.50 | D66: 8.99 | E66: 85.41 | F66: 老庄子
A67: 64 | B67: 庄子玉 | C67: 35.00 | D67: 8.99 | E67: 314.65 | F67: 老庄子
A68: 65 | B68: 何春彩 | C68: 15.05 | D68: 8.99 | E68: 135.30 | F68: 老庄子
A69: 66 | B69: 陈维香 | C69: 9.00 | D69: 8.99 | E69: 80.91 | F69: 老庄子
A70: 67 | B70: 马汉山 | C70: 6.30 | D70: 8.99 | E70: 56.64 | F70: 老庄子
A71: 68 | B71: 马玉忠 | C71: 7.70 | D71: 8.99 | E71: 69.22 | F71: 老庄子
A72: 69 | B72: 陈维田 | C72: 7.40 | D72: 8.99 | E72: 66.53 | F72: 老庄子
A73: 70 | B73: 张树占 | C73: 4.50 | D73: 8.99 | E73: 40.46 | F73: 老庄子
A74: 71 | B74: 张秀华 | C74: 7.00 | D74: 8.99 | E74: 62.93 | F74: 老庄子
A75: 72 | B75: 王宝庆 | C75: 20.00 | D75: 8.99 | E75: 179.80 | F75: 老庄子
A76: 73 | B76: 王建国 | C76: 6.50 | D76: 8.99 | E76: 58.44 | F76: 老庄子
A77: 74 | B77: 赵金锁 | C77: 2.50 | D77: 8.99 | E77: 22.48 | F77: 老庄子
A78: 75 | B78: 赵振宝 | C78: 6.00 | D78: 8.99 | E78: 53.94 | F78: 老庄子
A79: 76 | B79: 赵振宽 | C79: 7.00 | D79: 8.99 | E79: 62.93 | F79: 老庄子
A80: 77 | B80: 赵金付 | C80: 6.00 | D80: 8.99 | E80: 53.94 | F80: 老庄子
A81: 78 | B81: 王建民 | C81: 2.70 | D81: 8.99 | E81: 24.27 | F81: 老庄子
A82: 79 | B82: 宣洪全 | C82: 6.00 | D82: 8.99 | E82: 53.94 | F82: 老庄子
A83: 80 | B83: 李亚红 | C83: 5.00 | D83: 8.99 | E83: 44.95 | F83: 老庄子
A84: 81 | B84: 郝国英 | C84: 8.00 | D84: 8.99 | E84: 71.92 | F84: 老庄子
A85: 82 | B85: 赵振奎 | C85: 8.00 | D85: 8.99 | E85: 71.92 | F85: 老庄子
A86: 83 | B86: 许金艳 | C86: 10.00 | D86: 8.99 | E86: 89.90 | F86: 老庄子
A87: 84 | B87: 赵金贵 | C87: 4.00 | D87: 8.99 | E87: 35.96 | F87: 老庄子
A88: 85 | B88: 宣洪章 | C88: 7.00 | D88: 8.99 | E88: 62.93 | F88: 老庄子
A89: 86 | B89: 赵美龙 | C89: 15.20 | D89: 8.99 | E89: 136.65 | F89: 老庄子
A90: 87 | B90: 李秀文 | C90: 2.00 | D90: 8.99 | E90: 17.98 | F90: 老庄子
A91: 88 | B91: 宣洪合 | C91: 2.50 | D91: 8.99 | E91: 22.48 | F91: 老庄子
A92: 89 | B92: 宣洪星 | C92: 48.00 | D92: 8.99 | E92: 431.52 | F92: 老庄子
A93: 90 | B93: 张茂如 | C93: 7.10 | D93: 8.99 | E93: 63.83 | F93: 老庄子
A94: 91 | B94: 王金国 | C94: 8.00 | D94: 8.99 | E94: 71.92 | F94: 老庄子
A95: 92 | B95: 卢子信 | C95: 8.30 | D95: 8.99 | E95: 74.62 | F95: 老庄子
A96: 93 | B96: 卢子忠 | C96: 3.00 | D96: 8.99 | E96: 26.97 | F96: 老庄子
A97: 94 | B97: 王金胜 | C97: 9.00 | D97: 8.99 | E97: 80.91 | F97: 老庄子
A98: 95 | B98: 马平 | C98: 3.80 | D98: 8.99 | E98: 34.16 | F98: 老庄子
A99: 96 | B99: 赵振平 | C99: 11.00 | D99: 8.99 | E99: 98.89 | F99: 老庄子
A100: 97 | B100: 赵树国 | C100: 8.50 | D100: 8.99 | E100: 76.42 | F100: 老庄子
A101: 98 | B101: 赵树祥 | C101: 2.75 | D101: 8.99 | E101: 24.72 | F101: 老庄子
A102: 99 | B102: 赵树东 | C102: 4.00 | D102: 8.99 | E102: 35.96 | F102: 老庄子
A103: 100 | B103: 张国付 | C103: 1.50 | D103: 8.99 | E103: 13.49 | F103: 老庄子
A104: 101 | B104: 张国强 | C104: 10.20 | D104: 8.99 | E104: 91.70 | F104: 老庄子
A105: 102 | B105: 张国忠 | C105: 9.00 | D105: 8.99 | E105: 80.91 | F105: 老庄子
A106: 103 | B106: 张国胜 | C106: 1.20 | D106: 8.99 | E106: 10.79 | F106: 老庄子
A107: 104 | B107: 王国忠 | C107: 6.20 | D107: 8.99 | E107: 55.74 | F107: 老庄子
A108: 105 | B108: 王国成 | C108: 5.50 | D108: 8.99 | E108: 49.45 | F108: 老庄子
A109: 106 | B109: 马文刚 | C109: 5.50 | D109: 8.99 | E109: 49.45 | F109: 老庄子
A110: 107 | B110: 王得顺 | C110: 5.50 | D110: 8.99 | E110: 49.45 | F110: 老庄子
A111: 108 | B111: 李保国 | C111: 104.40 | D111: 8.99 | E111: 938.56 | F111: 老庄子
A112: 109 | B112: 张洪久 | C112: 4.90 | D112: 8.99 | E112: 44.05 | F112: 老庄子
A113: 110 | B113: 王树林 | C113: 4.50 | D113: 8.99 | E113: 40.46 | F113: 老庄子
A114: 111 | B114: 王树利 | C114: 4.70 | D114: 8.99 | E114: 42.25 | F114: 老庄子
A115: 112 | B115: 王树森 | C115: 4.80 | D115: 8.99 | E115: 43.15 | F115: 老庄子
A116: 113 | B116: 李维国 | C116: 5.70 | D116: 8.99 | E116: 51.24 | F116: 老庄子
A117: 114 | B117: 李维帮 | C117: 5.70 | D117: 8.99 | E117: 51.24 | F117: 老庄子
A118: 115 | B118: 李维全 | C118: 7.50 | D118: 8.99 | E118: 67.43 | F118: 老庄子
A119: 116 | B119: 张万兰 | C119: 5.60 | D119: 8.99 | E119: 50.34 | F119: 老庄子
A120: 117 | B120: 李保唐 | C120: 4.20 | D120: 8.99 | E120: 37.76 | F120: 老庄子
A121: 118 | B121: 徐敬元 | C121: 5.00 | D121: 8.99 | E121: 44.95 | F121: 老庄子
A122: 119 | B122: 徐敬辉 | C122: 5.00 | D122: 8.99 | E122: 44.95 | F122: 老庄子
A123: 120 | B123: 赵树才 | C123: 2.50 | D123: 8.99 | E123: 22.48 | F123: 老庄子
A124: 121 | B124: 赵树臣 | C124: 4.50 | D124: 8.99 | E124: 40.46 | F124: 老庄子
A125: 122 | B125: 赵树春 | C125: 3.00 | D125: 8.99 | E125: 26.97 | F125: 老庄子
A126: 123 | B126: 张国君 | C126: 6.50 | D126: 8.99 | E126: 58.44 | F126: 老庄子
A127: 124 | B127: 张国利 | C127: 7.50 | D127: 8.99 | E127: 67.43 | F127: 老庄子
A128: 125 | B128: 张国东 | C128: 6.00 | D128: 8.99 | E128: 53.94 | F128: 老庄子
A129: 126 | B129: 张国田 | C129: 6.00 | D129: 8.99 | E129: 53.94 | F129: 老庄子
A130: 127 | B130: 李福苓 | C130: 9.00 | D130: 8.99 | E130: 80.91 | F130: 老庄子
A131: 128 | B131: 李维忠 | C131: 2.94 | D131: 8.99 | E131: 26.43 | F131: 老庄子
A132: 129 | B132: 李东臣 | C132: 7.60 | D132: 8.99 | E132: 68.32 | F132: 老庄子
A133: 130 | B133: 赵树友 | C133: 6.00 | D133: 8.99 | E133: 53.94 | F133: 老庄子
A134: 131 | B134: 赵树利 | C134: 7.00 | D134: 8.99 | E134: 62.93 | F134: 老庄子
A135: 132 | B135: 赵树全 | C135: 11.50 | D135: 8.99 | E135: 103.39 | F135: 老庄子
A136: 133 | B136: 张洪波 | C136: 2.00 | D136: 8.99 | E136: 17.98 | F136: 老庄子
A137: 134 | B137: 张振永 | C137: 3.00 | D137: 8.99 | E137: 26.97 | F137: 老庄子
A138: 135 | B138: 赵永利 | C138: 5.00 | D138: 8.99 | E138: 44.95 | F138: 老庄子
A139: 136 | B139: 王桂香 | C139: 7.00 | D139: 8.99 | E139: 62.93 | F139: 老庄子
A140: 137 | B140: 张玉锦 | C140: 4.50 | D140: 8.99 | E140: 40.46 | F140: 老庄子
A141: 138 | B141: 王会云 | C141: 6.00 | D141: 8.99 | E141: 53.94 | F141: 老庄子
A142: 139 | B142: 李保顺 | C142: 3.20 | D142: 8.99 | E142: 28.77 | F142: 老庄子
A143: 140 | B143: 张国亮 | C143: 9.50 | D143: 8.99 | E143: 85.41 | F143: 老庄子
A144: 141 | B144: 刘永全 | C144: 15.00 | D144: 8.99 | E144: 134.85 | F144: 老庄子
A145: 142 | B145: 党继春 | C145: 3.00 | D145: 8.99 | E145: 26.97 | F145: 老庄子
A146: 143 | B146: 党继冬 | C146: 6.00 | D146: 8.99 | E146: 53.94 | F146: 老庄子
A147: 144 | B147: 李晓冬 | C147: 4.50 | D147: 8.99 | E147: 40.46 | F147: 老庄子
A148: 145 | B148: 李洪印 | C148: 8.00 | D148: 8.99 | E148: 71.92 | F148: 老庄子
A149: 146 | B149: 董玉平 | C149: 2.50 | D149: 8.99 | E149: 22.48 | F149: 老庄子
A150: 147 | B150: 李翠香 | C150: 4.10 | D150: 8.99 | E150: 36.86 | F150: 老庄子
A151: 148 | B151: 刘利华 | C151: 4.20 | D151: 8.99 | E151: 37.76 | F151: 老庄子
A152: 149 | B152: 王守伶 | C152: 6.00 | D152: 8.99 | E152: 53.94 | F152: 老庄子
A153: 150 | B153: 王守利 | C153: 6.00 | D153: 8.99 | E153: 53.94 | F153: 老庄子
A154: 151 | B154: 马存 | C154: 4.70 | D154: 8.99 | E154: 42.25 | F154: 老庄子
A155: 152 | B155: 马永 | C155: 2.50 | D155: 8.99 | E155: 22.48 | F155: 老庄子
A156: 153 | B156: 马大利 | C156: 2.17 | D156: 8.99 | E156: 19.51 | F156: 老庄子
A157: 154 | B157: 马辉 | C157: 9.00 | D157: 8.99 | E157: 80.91 | F157: 老庄子
A158: 155 | B158: 李洪海 | C158: 1.66 | D158: 8.99 | E158: 14.92 | F158: 老庄子
A159: 156 | B159: 马明远 | C159: 3.45 | D159: 8.99 | E159: 31.02 | F159: 老庄子
A160: 157 | B160: 何春永 | C160: 2.50 | D160: 8.99 | E160: 22.48 | F160: 老庄子
A161: 158 | B161: 何春友 | C161: 2.50 | D161: 8.99 | E161: 22.48 | F161: 老庄子
A162: 159 | B162: 石铁力 | C162: 14.00 | D162: 8.99 | E162: 125.86 | F162: 老庄子
A163: 160 | B163: 李保江 | C163: 6.20 | D163: 8.99 | E163: 55.74 | F163: 老庄子
A164: 161 | B164: 吴国强 | C164: 3.85 | D164: 8.99 | E164: 34.61 | F164: 老庄子
A165: 162 | B165: 蒋国辉 | C165: 10.00 | D165: 8.99 | E165: 89.90 | F165: 老庄子
A166: 163 | B166: 赵利民 | C166: 6.74 | D166: 8.99 | E166: 60.59 | F166: 老庄子
A167: 164 | B167: 赵利军 | C167: 5.50 | D167: 8.99 | E167: 49.45 | F167: 老庄子
A168: 165 | B168: 赵利文 | C168: 5.80 | D168: 8.99 | E168: 52.14 | F168: 老庄子
A169: 166 | B169: 赵利华 | C169: 4.00 | D169: 8.99 | E169: 35.96 | F169: 老庄子
A170: 167 | B170: 张永林 | C170: 30.00 | D170: 8.99 | E170: 269.70 | F170: 老庄子
A171: 168 | B171: 张辉 | C171: 2.20 | D171: 8.99 | E171: 19.78 | F171: 老庄子
A172: 169 | B172: 侯莲华 | C172: 1.00 | D172: 8.99 | E172: 8.99 | F172: 老庄子
A173: 170 | B173: 李振友 | C173: 12.00 | D173: 8.99 | E173: 107.88 | F173: 老庄子
A174: 171 | B174: 刘树云 | C174: 10.00 | D174: 8.99 | E174: 89.90 | F174: 老庄子
A175: 172 | B175: 李顺友 | C175: 9.00 | D175: 8.99 | E175: 80.91 | F175: 老庄子
A176: 173 | B176: 冯秀琴 | C176: 6.50 | D176: 8.99 | E176: 58.44 | F176: 老庄子
A177: 174 | B177: 李志伟 | C177: 7.24 | D177: 8.99 | E177: 65.09 | F177: 老庄子
A178: 175 | B178: 赵静 | C178: 1.80 | D178: 8.99 | E178: 16.18 | F178: 老庄子
A179: 176 | B179: 刘树青 | C179: 6.00 | D179: 8.99 | E179: 53.94 | F179: 老庄子
A180: 177 | B180: 李鹏超 | C180: 6.10 | D180: 8.99 | E180: 54.84 | F180: 老庄子
A181: 178 | B181: 李振洲 | C181: 7.00 | D181: 8.99 | E181: 62.93 | F181: 老庄子
A182: 179 | B182: 李友永 | C182: 4.13 | D182: 8.99 | E182: 37.13 | F182: 老庄子
A183: 180 | B183: 李艳友 | C183: 4.00 | D183: 8.99 | E183: 35.96 | F183: 老庄子
A184: 181 | B184: 郭莉 | C184: 4.60 | D184: 8.99 | E184: 41.35 | F184: 老庄子
A185: 182 | B185: 单树中 | C185: 7.00 | D185: 8.99 | E185: 62.93 | F185: 老庄子
A186: 183 | B186: 刘俊凤 | C186: 14.40 | D186: 8.99 | E186: 129.46 | F186: 老庄子
A187: 184 | B187: 康春江 | C187: 9.00 | D187: 8.99 | E187: 80.91 | F187: 老庄子
A188: 185 | B188: 高占山 | C188: 7.90 | D188: 8.99 | E188: 71.02 | F188: 老庄子
A189: 186 | B189: 宋建海 | C189: 15.90 | D189: 8.99 | E189: 142.94 | F189: 老庄子
A190: 187 | B190: 单树青 | C190: 18.20 | D190: 8.99 | E190: 163.62 | F190: 老庄子
A191: 188 | B191: 刘树里 | C191: 5.00 | D191: 8.99 | E191: 44.95 | F191: 老庄子
A192: 189 | B192: 郭振友 | C192: 8.10 | D192: 8.99 | E192: 72.82 | F192: 老庄子
A193: 190 | B193: 李建林 | C193: 3.00 | D193: 8.99 | E193: 26.97 | F193: 老庄子
A194: 191 | B194: 张宝珍 | C194: 6.66 | D194: 8.99 | E194: 59.87 | F194: 老庄子
A195: 192 | B195: 张长顺 | C195: 5.50 | D195: 8.99 | E195: 49.45 | F195: 老庄子
A196: 193 | B196: 李文顺 | C196: 13.70 | D196: 8.99 | E196: 123.16 | F196: 老庄子
A197: 194 | B197: 李俊伟 | C197: 11.10 | D197: 8.99 | E197: 99.79 | F197: 老庄子
A198: 195 | B198: 李存保 | C198: 12.30 | D198: 8.99 | E198: 110.58 | F198: 老庄子
A199: 196 | B199: 杨素英 | C199: 7.00 | D199: 8.99 | E199: 62.93 | F199: 老庄子
A200: 197 | B200: 单文泽 | C200: 7.80 | D200: 8.99 | E200: 70.12 | F200: 老庄子
A201: 198 | B201: 韩艳香 | C201: 4.20 | D201: 8.99 | E201: 37.76 | F201: 老庄子
... 2907 more rows

Sheet 汇总表
A1: 高新区2023年实际种粮农民一次性补贴资金汇总表（第一批）
A2: 序 号 | B2: 单 位 | C2: 村数 | D2: 户数 | E2: 补贴面积（亩） | F2: 补贴标准（元） | G2: 补贴金额（元） | H2: 备注
A3: 1 | B3: 街道办事处 | C3: 1 | D3: 10 | E3: 328.16 | F3: 8.99 | G3: 2,950.17
A4: 2 | B4: 三女河办事处 | C4: 15 | D4: 2129 | E4: 16,252.21 | F4: 8.99 | G4: 146,108.53
A5: 3 | B5: 庆北办事处 | C5: 8 | D5: 605 | E5: 3,760.30 | F5: 8.99 | G5: 33,805.62
A6: 4 | B6: 老庄子镇 | C6: 17 | D6: 3104 | E6: 18,346.60 | F6: 8.99 | G6: 164,937.92
A7: 11 | B7: 合计 | C7: =SUM(C3:C6) -> 41 | D7: 5848 | E7: 38687.27 | F7: 8.99 | G7: 347802.24
A8: 高新区监督举报电话：0315-5513128
